[Event "Live Chess"]
[Site "Chess.com"]
[Date "2024.06.02"]
[Round "-"]
[White "TheSmoulderingMaster"]
[Black "ProfessorChess101"]
[Result "0-1"]
[WhiteElo "1751"]
[BlackElo "2731"]
[TimeControl "300"]
[EndTime "1:03:13 PDT"]
[Termination "ProfessorChess101 won by resignation"]

1. e4 {[%clk 0:04:56.8]} 1... a6 {[%clk 0:04:57.9]} 2. d4 {[%clk 0:04:54]} 2...
b5 {[%clk 0:04:57.1]} 3. Nf3 {[%clk 0:04:49.4]} 3... Bb7 {[%clk 0:04:56.1]} 4.
Bd3 {[%clk 0:04:44.8]} 4... e6 {[%clk 0:04:55.1]} 5. Bf4 {[%clk 0:04:36.9]} 5...
d6 {[%clk 0:04:53.8]} 6. Qd2 {[%clk 0:04:34.9]} 6... Nd7 {[%clk 0:04:52.2]} 7.
O-O {[%clk 0:04:33.1]} 7... Ngf6 {[%clk 0:04:50.5]} 8. Re1 {[%clk 0:04:30]} 8...
Be7 {[%clk 0:04:49]} 9. Nc3 {[%clk 0:04:24.2]} 9... c5 {[%clk 0:04:17.3]} 10.
dxc5 {[%clk 0:04:19.5]} 10... dxc5 {[%clk 0:04:03.7]} 11. e5 {[%clk 0:04:16.5]}
11... Nd5 {[%clk 0:04:01]} 12. Bg3 {[%clk 0:04:12.8]} 12... N7b6 {[%clk
0:03:53.2]} 13. Ne4 {[%clk 0:04:08.3]} 13... O-O {[%clk 0:03:42.4]} 14. Nf6+
{[%clk 0:03:18.9]} 14... Nxf6 {[%clk 0:03:19.4]} 15. exf6 {[%clk 0:03:17.2]}
15... Bxf6 {[%clk 0:03:19.3]} 16. Be5 {[%clk 0:03:03.6]} 16... Bxf3 {[%clk
0:03:15.5]} 17. gxf3 {[%clk 0:03:01.8]} 17... Nc4 {[%clk 0:03:07.1]} 18. Qf4
{[%clk 0:02:54.4]} 18... Nxe5 {[%clk 0:03:01]} 19. Be4 {[%clk 0:02:40.3]} 19...
Ra7 {[%clk 0:02:57.2]} 20. Qg3 {[%clk 0:02:31.3]} 20... Ng6 {[%clk 0:02:54]} 21.
Qh3 {[%clk 0:02:27.9]} 21... Bd4 {[%clk 0:02:44.3]} 22. Rad1 {[%clk 0:02:21.9]}
22... Qg5+ {[%clk 0:02:42.8]} 23. Kh1 {[%clk 0:02:18.2]} 23... Bxf2 {[%clk
0:02:35.5]} 24. Re2 {[%clk 0:02:16.7]} 24... Qh4 {[%clk 0:02:27.5]} 25. Qg2
{[%clk 0:02:06.6]} 25... Bd4 {[%clk 0:02:22.7]} 26. c3 {[%clk 0:02:04.9]} 26...
Nf4 {[%clk 0:02:17.7]} 27. Qf1 {[%clk 0:01:53.7]} 27... Nxe2 {[%clk 0:02:15.3]}
28. Qxe2 {[%clk 0:01:52.9]} 28... Bf6 {[%clk 0:02:14.3]} 29. Rg1 {[%clk
0:01:45.9]} 29... Rd7 {[%clk 0:02:06.4]} 30. Rg4 {[%clk 0:01:42.5]} 30... Qh6
{[%clk 0:02:02.4]} 31. Rg3 {[%clk 0:01:39.4]} 31... Rd2 {[%clk 0:01:49.1]} 32.
Rh3 {[%clk 0:01:28.8]} 32... Rxe2 {[%clk 0:01:44.5]} 0-1

[Event "Live Chess"]
[Site "Chess.com"]
[Date "2024.06.02"]
[Round "-"]
[White "Tatarinov_Maxim"]
[Black "JohanKjeldahl"]
[Result "1-0"]
[WhiteElo "2272"]
[BlackElo "1868"]
[TimeControl "300"]
[EndTime "1:03:24 PDT"]
[Termination "Tatarinov_Maxim won by resignation"]

1. d4 {[%clk 0:04:56.9]} 1... Nf6 {[%clk 0:04:58.1]} 2. c4 {[%clk 0:04:56.1]}
2... c5 {[%clk 0:04:56.9]} 3. d5 {[%clk 0:04:52]} 3... b5 {[%clk 0:04:55.8]} 4.
cxb5 {[%clk 0:04:50.8]} 4... a6 {[%clk 0:04:55]} 5. e3 {[%clk 0:04:46.6]} 5...
Bb7 {[%clk 0:04:52.1]} 6. Nc3 {[%clk 0:04:44.4]} 6... e6 {[%clk 0:04:48.1]} 7.
dxe6 {[%clk 0:04:42.4]} 7... fxe6 {[%clk 0:04:46.5]} 8. Nf3 {[%clk 0:04:41.3]}
8... d5 {[%clk 0:04:40.1]} 9. bxa6 {[%clk 0:04:37.1]} 9... Nxa6 {[%clk
0:04:36.9]} 10. Bb5+ {[%clk 0:04:35.8]} 10... Nd7 {[%clk 0:04:32.5]} 11. Ne5
{[%clk 0:04:30.7]} 11... Bc8 {[%clk 0:04:26.8]} 12. Qh5+ {[%clk 0:04:28.9]}
12... g6 {[%clk 0:04:18.2]} 1-0

[Event "Live Chess"]
[Site "Chess.com"]
[Date "2024.06.02"]
[Round "-"]
[White "AlanBstard10"]
[Black "Bradfield133"]
[Result "0-1"]
[WhiteElo "1198"]
[BlackElo "1865"]
[TimeControl "300"]
[EndTime "1:03:43 PDT"]
[Termination "Bradfield133 won by resignation"]

1. b4 {[%clk 0:04:57.7]} 1... e6 {[%clk 0:04:57.2]} 2. Bb2 {[%clk 0:04:56.8]}
2... Nf6 {[%clk 0:04:51.5]} 3. a3 {[%clk 0:04:55.4]} 3... c5 {[%clk 0:04:48.7]}
4. c4 {[%clk 0:04:54.2]} 4... cxb4 {[%clk 0:04:46.2]} 5. a4 {[%clk 0:04:50.8]}
5... Be7 {[%clk 0:04:41]} 6. e3 {[%clk 0:04:48.4]} 6... O-O {[%clk 0:04:39.2]}
7. Nf3 {[%clk 0:04:42.8]} 7... b6 {[%clk 0:04:36.1]} 8. Be2 {[%clk 0:04:39]}
8... Bb7 {[%clk 0:04:35]} 9. d3 {[%clk 0:04:31.3]} 9... d5 {[%clk 0:04:27.3]}
10. cxd5 {[%clk 0:04:29.5]} 10... Nxd5 {[%clk 0:04:17.2]} 11. e4 {[%clk
0:04:25.2]} 11... Nf4 {[%clk 0:04:11.7]} 12. Nbd2 {[%clk 0:04:23.4]} 12... Nxd3+
{[%clk 0:04:08.4]} 13. Bxd3 {[%clk 0:04:20.7]} 13... Qxd3 {[%clk 0:04:08.1]} 14.
Ne5 {[%clk 0:04:09.2]} 14... Qd8 {[%clk 0:03:55.5]} 15. Qg4 {[%clk 0:03:59]}
15... Bf6 {[%clk 0:03:50.3]} 16. f4 {[%clk 0:03:48.9]} 16... Nd7 {[%clk
0:03:37.5]} 17. Nxd7 {[%clk 0:03:44.3]} 17... Bxb2 {[%clk 0:03:28.3]} 18. Nxf8
{[%clk 0:03:42.6]} 18... Bxa1 {[%clk 0:03:21.7]} 19. Ke2 {[%clk 0:03:36.6]}
19... Bc3 {[%clk 0:03:17.9]} 20. Rd1 {[%clk 0:03:20.9]} 20... Qxf8 {[%clk
0:03:14.9]} 21. Nc4 {[%clk 0:03:15.9]} 21... Ba6 {[%clk 0:03:07.4]} 0-1

[Event "Live Chess"]
[Site "Chess.com"]
[Date "2024.06.02"]
[Round "-"]
[White "Crowded_House"]
[Black "ProfPoisson"]
[Result "0-1"]
[WhiteElo "1649"]
[BlackElo "1348"]
[TimeControl "300"]
[EndTime "1:04:03 PDT"]
[Termination "ProfPoisson won by resignation"]

1. d4 {[%clk 0:04:57.8]} 1... e6 {[%clk 0:04:57.6]} 2. Nf3 {[%clk 0:04:53.9]}
2... f5 {[%clk 0:04:55.2]} 3. Bg5 {[%clk 0:04:52.6]} 3... Nf6 {[%clk 0:04:49.5]}
4. e3 {[%clk 0:04:47.7]} 4... Be7 {[%clk 0:04:40.1]} 5. Ne5 {[%clk 0:04:39.9]}
5... O-O {[%clk 0:04:33.2]} 6. Bd3 {[%clk 0:04:28.3]} 6... Ne4 {[%clk
0:04:29.3]} 7. Bxe7 {[%clk 0:04:25]} 7... Qxe7 {[%clk 0:04:26]} 8. Bxe4 {[%clk
0:04:08.9]} 8... fxe4 {[%clk 0:04:22.4]} 9. Qg4 {[%clk 0:04:07.6]} 9... d6
{[%clk 0:04:16.3]} 10. Nc4 {[%clk 0:04:02.8]} 10... e5 {[%clk 0:04:03.6]} 11.
Qxe4 {[%clk 0:03:56.3]} 11... Qf7 {[%clk 0:03:57.8]} 12. O-O {[%clk 0:03:06]}
12... Qxc4 {[%clk 0:03:54.1]} 13. b3 {[%clk 0:03:05.2]} 13... Qf7 {[%clk
0:03:47.1]} 14. dxe5 {[%clk 0:03:04.2]} 14... Nc6 {[%clk 0:03:39.9]} 15. exd6
{[%clk 0:03:02.4]} 15... cxd6 {[%clk 0:03:34.8]} 16. Nc3 {[%clk 0:02:52.1]}
16... Bf5 {[%clk 0:03:32.6]} 17. Qf4 {[%clk 0:02:24.8]} 17... Bxc2 {[%clk
0:03:21.2]} 18. Qxd6 {[%clk 0:02:22.6]} 18... Rad8 {[%clk 0:03:14.4]} 19. Qc5
{[%clk 0:02:17.3]} 19... Qg6 {[%clk 0:03:07]} 20. Qc4+ {[%clk 0:02:12.9]} 20...
Kh8 {[%clk 0:02:57.1]} 21. Rac1 {[%clk 0:02:08]} 21... Bd3 {[%clk 0:02:54.2]}
0-1

[Event "Live Chess"]
[Site "Chess.com"]
[Date "2024.06.02"]
[Round "-"]
[White "vincents82"]
[Black "Hacker_2009"]
[Result "1/2-1/2"]
[WhiteElo "2010"]
[BlackElo "2232"]
[TimeControl "300"]
[EndTime "1:04:18 PDT"]
[Termination "Game drawn by stalemate"]

1. e4 {[%clk 0:04:55.6]} 1... c5 {[%clk 0:04:59.1]} 2. Nf3 {[%clk 0:04:54.4]}
2... e6 {[%clk 0:04:58]} 3. d4 {[%clk 0:04:53.4]} 3... cxd4 {[%clk 0:04:57.9]}
4. Nxd4 {[%clk 0:04:52.6]} 4... a6 {[%clk 0:04:57.5]} 5. g3 {[%clk 0:04:48.8]}
5... Nf6 {[%clk 0:04:55.2]} 6. Bg2 {[%clk 0:04:47.6]} 6... Be7 {[%clk
0:04:53.3]} 7. O-O {[%clk 0:04:46.4]} 7... O-O {[%clk 0:04:51.4]} 8. e5 {[%clk
0:04:43.6]} 8... Nd5 {[%clk 0:04:47.6]} 9. c4 {[%clk 0:04:42.2]} 9... Nb6 {[%clk
0:04:42.3]} 10. b3 {[%clk 0:04:40.8]} 10... d6 {[%clk 0:04:40.7]} 11. exd6
{[%clk 0:04:29.5]} 11... Qxd6 {[%clk 0:04:39.7]} 12. Ba3 {[%clk 0:04:04.5]}
12... Qd8 {[%clk 0:04:20.9]} 13. Bxe7 {[%clk 0:04:02.2]} 13... Qxe7 {[%clk
0:04:20.8]} 14. Qe2 {[%clk 0:03:40.9]} 14... N8d7 {[%clk 0:04:06.8]} 15. Nc3
{[%clk 0:03:39.4]} 15... Nf6 {[%clk 0:03:55.6]} 16. Ne4 {[%clk 0:03:34.7]} 16...
Nxe4 {[%clk 0:03:36.2]} 17. Qxe4 {[%clk 0:03:30.5]} 17... Rb8 {[%clk 0:02:36.6]}
18. Rad1 {[%clk 0:03:26.3]} 18... Bd7 {[%clk 0:02:33.9]} 19. Nf5 {[%clk
0:03:24.9]} 19... Qf6 {[%clk 0:02:28.7]} 20. Nd6 {[%clk 0:03:13.7]} 20... Bc6
{[%clk 0:02:26.5]} 21. Qd4 {[%clk 0:03:12.5]} 21... Qxd4 {[%clk 0:02:22.7]} 22.
Rxd4 {[%clk 0:03:10.7]} 22... Bxg2 {[%clk 0:02:22.2]} 23. Kxg2 {[%clk
0:03:09.9]} 23... Rfd8 {[%clk 0:02:21.5]} 24. Rfd1 {[%clk 0:03:08.2]} 24... h6
{[%clk 0:02:19.3]} 25. f4 {[%clk 0:02:58.7]} 25... Rd7 {[%clk 0:02:14.5]} 26. a4
{[%clk 0:02:56.6]} 26... Rbd8 {[%clk 0:02:11.1]} 27. Kf3 {[%clk 0:02:45.7]}
27... Kf8 {[%clk 0:02:00.3]} 28. a5 {[%clk 0:02:41.2]} 28... Nc8 {[%clk
0:01:54.9]} 29. c5 {[%clk 0:02:40.3]} 29... Na7 {[%clk 0:01:34.9]} 30. Ke4
{[%clk 0:02:31.3]} 30... Nc6 {[%clk 0:01:32.2]} 31. R4d3 {[%clk 0:02:27.9]}
31... Nxa5 {[%clk 0:01:28.3]} 32. b4 {[%clk 0:02:25.8]} 32... Nc6 {[%clk
0:01:26.7]} 33. Nxb7 {[%clk 0:02:20.1]} 33... Rxd3 {[%clk 0:01:24.6]} 34. Rxd3
{[%clk 0:02:16.5]} 34... Rxd3 {[%clk 0:01:23.2]} 35. Kxd3 {[%clk 0:02:15.3]}
35... Nxb4+ {[%clk 0:01:22.8]} 36. Kc4 {[%clk 0:02:12.5]} 36... Nc6 {[%clk
0:01:21.6]} 37. Nd6 {[%clk 0:01:59.8]} 37... f5 {[%clk 0:01:17.1]} 38. Kb3
{[%clk 0:01:49.9]} 38... Ke7 {[%clk 0:01:14.1]} 39. Ka4 {[%clk 0:01:45.8]} 39...
Nd4 {[%clk 0:01:10.2]} 40. Ka5 {[%clk 0:01:35.2]} 40... Kd7 {[%clk 0:00:59.7]}
41. Kb6 {[%clk 0:01:27.8]} 41... Nc6 {[%clk 0:00:52.5]} 42. Kxa6 {[%clk
0:01:22.5]} 42... g5 {[%clk 0:00:39.7]} 43. Kb6 {[%clk 0:01:11.9]} 43... gxf4
{[%clk 0:00:38.1]} 44. gxf4 {[%clk 0:01:11.5]} 44... Nd4 {[%clk 0:00:36.6]} 45.
Nc4 {[%clk 0:01:08.2]} 45... Nc6 {[%clk 0:00:33.7]} 46. Kb7 {[%clk 0:01:02.1]}
46... Nd8+ {[%clk 0:00:23.9]} 47. Kb6 {[%clk 0:01:01]} 47... Nc6 {[%clk
0:00:22.8]} 48. h4 {[%clk 0:00:54.8]} 48... h5 {[%clk 0:00:19.1]} 49. Kb5 {[%clk
0:00:50.3]} 49... Nd4+ {[%clk 0:00:17.9]} 50. Kb6 {[%clk 0:00:46.3]} 50... Nc6
{[%clk 0:00:17.3]} 51. Na5 {[%clk 0:00:41.7]} 51... Nxa5 {[%clk 0:00:15.9]} 52.
Kxa5 {[%clk 0:00:41]} 52... Kc6 {[%clk 0:00:15.3]} 53. Kb4 {[%clk 0:00:39.6]}
53... e5 {[%clk 0:00:10.1]} 54. fxe5 {[%clk 0:00:38.1]} 54... Kd5 {[%clk
0:00:09.6]} 55. Kb5 {[%clk 0:00:35]} 55... f4 {[%clk 0:00:08.8]} 56. c6 {[%clk
0:00:34.3]} 56... f3 {[%clk 0:00:08.4]} 57. c7 {[%clk 0:00:30.3]} 57... f2
{[%clk 0:00:08]} 58. c8=Q {[%clk 0:00:28.9]} 58... f1=Q+ {[%clk 0:00:07.9]} 59.
Kb6 {[%clk 0:00:26.8]} 59... Qb1+ {[%clk 0:00:07.4]} 60. Ka7 {[%clk 0:00:23]}
60... Qa2+ {[%clk 0:00:06.6]} 61. Kb8 {[%clk 0:00:19]} 61... Qb3+ {[%clk
0:00:05.5]} 62. Kc7 {[%clk 0:00:18.3]} 62... Qc4+ {[%clk 0:00:04.6]} 63. Kd7
{[%clk 0:00:17]} 63... Qxc8+ {[%clk 0:00:04.5]} 64. Kxc8 {[%clk 0:00:16.4]}
64... Kxe5 {[%clk 0:00:04.4]} 65. Kc7 {[%clk 0:00:16]} 65... Kf4 {[%clk
0:00:04.3]} 66. Kd6 {[%clk 0:00:15.5]} 66... Kg4 {[%clk 0:00:04.2]} 67. Ke5
{[%clk 0:00:15.2]} 67... Kxh4 {[%clk 0:00:04.1]} 68. Kf4 {[%clk 0:00:14.2]}
68... Kh3 {[%clk 0:00:03.3]} 69. Kf3 {[%clk 0:00:13.7]} 69... Kh2 {[%clk
0:00:03.2]} 70. Kf2 {[%clk 0:00:13.2]} 70... h4 {[%clk 0:00:03.1]} 71. Kf1
{[%clk 0:00:12.7]} 71... h3 {[%clk 0:00:03]} 72. Kf2 {[%clk 0:00:12.3]} 72...
Kh1 {[%clk 0:00:02.1]} 73. Kf1 {[%clk 0:00:11.3]} 73... h2 {[%clk 0:00:02]} 74.
Kf2 {[%clk 0:00:10.8]} 1/2-1/2

[Event "Live Chess"]
[Site "Chess.com"]
[Date "2024.06.02"]
[Round "-"]
[White "booktrunk"]
[Black "RG_ChessLegend"]
[Result "1-0"]
[WhiteElo "1502"]
[BlackElo "1515"]
[TimeControl "300"]
[EndTime "1:04:33 PDT"]
[Termination "booktrunk won by checkmate"]

1. d4 {[%clk 0:04:51.7]} 1... Nf6 {[%clk 0:04:58.2]} 2. Bf4 {[%clk 0:04:40.5]}
2... d5 {[%clk 0:04:56.8]} 3. Nc3 {[%clk 0:04:33.8]} 3... a6 {[%clk 0:04:51.1]}
4. Nf3 {[%clk 0:04:30.3]} 4... Nc6 {[%clk 0:04:49.3]} 5. e3 {[%clk 0:04:28.1]}
5... Bg4 {[%clk 0:04:47.5]} 6. h3 {[%clk 0:04:26.1]} 6... Bh5 {[%clk 0:04:45.8]}
7. g4 {[%clk 0:04:24.1]} 7... Bg6 {[%clk 0:04:44.4]} 8. Nh4 {[%clk 0:04:19.9]}
8... e6 {[%clk 0:04:42.1]} 9. Nxg6 {[%clk 0:04:18.6]} 9... hxg6 {[%clk
0:04:41.1]} 10. Bg2 {[%clk 0:04:11.1]} 10... Bb4 {[%clk 0:04:38.5]} 11. a3
{[%clk 0:04:03.3]} 11... g5 {[%clk 0:04:29.2]} 12. Bg3 {[%clk 0:04:00.6]} 12...
Bxc3+ {[%clk 0:04:24.8]} 13. bxc3 {[%clk 0:03:58.9]} 13... Qd7 {[%clk
0:04:18.5]} 14. Qd3 {[%clk 0:03:54.7]} 14... O-O-O {[%clk 0:04:11.8]} 15. a4
{[%clk 0:03:50.6]} 15... Na5 {[%clk 0:04:07.1]} 16. O-O {[%clk 0:03:32.9]} 16...
Nc4 {[%clk 0:04:05.4]} 17. a5 {[%clk 0:03:25]} 17... Rde8 {[%clk 0:03:50.5]} 18.
e4 {[%clk 0:03:22.1]} 18... Nd6 {[%clk 0:03:34.8]} 19. e5 {[%clk 0:03:19.2]}
19... Nc4 {[%clk 0:03:26.2]} 20. exf6 {[%clk 0:03:16.6]} 20... gxf6 {[%clk
0:03:26.1]} 21. Rfe1 {[%clk 0:03:05]} 21... Rhf8 {[%clk 0:03:16.8]} 22. f3
{[%clk 0:03:03.5]} 22... e5 {[%clk 0:03:12.9]} 23. dxe5 {[%clk 0:03:01]} 23...
fxe5 {[%clk 0:03:12.8]} 24. Rad1 {[%clk 0:02:54.3]} 24... c6 {[%clk 0:03:03.7]}
25. Rb1 {[%clk 0:02:39]} 25... Nxa5 {[%clk 0:02:51]} 26. Ra1 {[%clk 0:02:31.1]}
26... Nc4 {[%clk 0:02:48.5]} 27. Reb1 {[%clk 0:02:27.2]} 27... f6 {[%clk
0:02:34.1]} 28. Bf1 {[%clk 0:02:25.7]} 28... Rf7 {[%clk 0:02:31.6]} 29. Qf5
{[%clk 0:02:17.3]} 29... Re6 {[%clk 0:02:26.5]} 30. Bxc4 {[%clk 0:02:13.3]}
30... dxc4 {[%clk 0:02:26.4]} 31. Rd1 {[%clk 0:02:11.3]} 31... Qe7 {[%clk
0:02:23.8]} 32. Rd2 {[%clk 0:02:07.7]} 32... Kb8 {[%clk 0:02:17.4]} 33. Rad1
{[%clk 0:02:06.1]} 33... Rf8 {[%clk 0:02:10.6]} 34. Rd7 {[%clk 0:02:03.4]} 34...
Qc5+ {[%clk 0:02:09.5]} 35. Kg2 {[%clk 0:01:57.8]} 35... Ree8 {[%clk 0:02:08.3]}
36. Rb1 {[%clk 0:01:42.3]} 36... b5 {[%clk 0:02:05.5]} 37. Rbd1 {[%clk
0:01:33.7]} 37... Qe3 {[%clk 0:01:59]} 38. Qe4 {[%clk 0:01:18.3]} 38... Qxe4
{[%clk 0:01:51.3]} 39. fxe4 {[%clk 0:01:16.4]} 39... Rc8 {[%clk 0:01:48.6]} 40.
R7d6 {[%clk 0:01:12.4]} 40... Kb7 {[%clk 0:01:46.4]} 41. Rd7+ {[%clk 0:01:09.4]}
41... Kb6 {[%clk 0:01:43.8]} 42. Bf2+ {[%clk 0:01:06.7]} 42... c5 {[%clk
0:01:43.3]} 43. R7d6+ {[%clk 0:01:03.4]} 43... Ka5 {[%clk 0:01:42.8]} 44. Ra1#
{[%clk 0:01:01.2]} 1-0

[Event "Live Chess"]
[Site "Chess.com"]
[Date "2024.06.02"]
[Round "-"]
[White "Queensandpawns"]
[Black "NAZRIZ1977"]
[Result "0-1"]
[WhiteElo "2281"]
[BlackElo "2139"]
[TimeControl "300"]
[EndTime "1:04:51 PDT"]
[Termination "NAZRIZ1977 won on time"]

1. d4 {[%clk 0:04:59]} 1... Nf6 {[%clk 0:04:58.3]} 2. Nc3 {[%clk 0:04:58.9]}
2... d5 {[%clk 0:04:57.2]} 3. Bf4 {[%clk 0:04:58.7]} 3... g6 {[%clk 0:04:56.3]}
4. h4 {[%clk 0:04:57.8]} 4... Bg7 {[%clk 0:04:54.2]} 5. e3 {[%clk 0:04:57.5]}
5... O-O {[%clk 0:04:52.8]} 6. h5 {[%clk 0:04:57.2]} 6... c5 {[%clk 0:04:52.3]}
7. hxg6 {[%clk 0:04:56.4]} 7... fxg6 {[%clk 0:04:51.6]} 8. Nf3 {[%clk
0:04:56.3]} 8... Nc6 {[%clk 0:04:50.6]} 9. Be2 {[%clk 0:04:48.8]} 9... cxd4
{[%clk 0:04:48.2]} 10. exd4 {[%clk 0:04:40]} 10... Qb6 {[%clk 0:04:46.5]} 11. a3
{[%clk 0:04:24.5]} 11... Bg4 {[%clk 0:04:39.5]} 12. Be3 {[%clk 0:04:20.5]} 12...
e6 {[%clk 0:04:34.5]} 13. Qd2 {[%clk 0:04:17]} 13... Qxb2 {[%clk 0:04:25.5]} 14.
O-O {[%clk 0:04:13.8]} 14... Qb6 {[%clk 0:04:16.4]} 15. Ne5 {[%clk 0:04:06.5]}
15... Bxe2 {[%clk 0:04:14.2]} 16. Nxe2 {[%clk 0:04:03.4]} 16... Ne4 {[%clk
0:04:01.9]} 17. Qd3 {[%clk 0:04:02]} 17... Nxe5 {[%clk 0:03:55.6]} 18. dxe5
{[%clk 0:04:01.9]} 18... Qa6 {[%clk 0:03:53]} 19. f4 {[%clk 0:03:57.3]} 19...
Rac8 {[%clk 0:03:45]} 0-1

[Event "Live Chess"]
[Site "Chess.com"]
[Date "2024.06.02"]
[Round "-"]
[White "MagnersCarlsberg2870"]
[Black "KeithArkell"]
[Result "1-0"]
[WhiteElo "1830"]
[BlackElo "2394"]
[TimeControl "300"]
[EndTime "1:04:51 PDT"]
[Termination "MagnersCarlsberg2870 won by resignation"]

1. c4 {[%clk 0:04:56.6]} 1... c5 {[%clk 0:04:58.9]} 2. Nc3 {[%clk 0:04:55.6]}
2... Nc6 {[%clk 0:04:58.3]} 3. g3 {[%clk 0:04:54.1]} 3... g6 {[%clk 0:04:57.4]}
4. Bg2 {[%clk 0:04:53.2]} 4... Bg7 {[%clk 0:04:57]} 5. d3 {[%clk 0:04:51.9]}
5... Nf6 {[%clk 0:04:56.1]} 6. e4 {[%clk 0:04:51]} 6... O-O {[%clk 0:04:55]} 7.
Nge2 {[%clk 0:04:49.4]} 7... a6 {[%clk 0:04:54.5]} 8. a4 {[%clk 0:04:47.6]} 8...
d6 {[%clk 0:04:52.8]} 9. O-O {[%clk 0:04:46.4]} 9... Bd7 {[%clk 0:04:51.8]} 10.
h3 {[%clk 0:04:45]} 10... Qc8 {[%clk 0:04:50.2]} 11. Kh2 {[%clk 0:04:44.2]}
11... Nd4 {[%clk 0:04:48.7]} 12. f4 {[%clk 0:04:34.2]} 12... Re8 {[%clk
0:04:45.6]} 13. Nxd4 {[%clk 0:04:29.8]} 13... cxd4 {[%clk 0:04:44.8]} 14. Ne2
{[%clk 0:04:29.1]} 14... e5 {[%clk 0:04:40.4]} 15. g4 {[%clk 0:04:17.1]} 15...
exf4 {[%clk 0:04:39.2]} 16. Bxf4 {[%clk 0:04:10.9]} 16... Re6 {[%clk 0:04:38]}
17. Nxd4 {[%clk 0:04:09.3]} 17... Nxg4+ {[%clk 0:04:35.8]} 18. hxg4 {[%clk
0:04:02.1]} 18... Bxd4 {[%clk 0:04:34.1]} 19. Bh6 {[%clk 0:03:47.3]} 19... Rf6
{[%clk 0:04:20.8]} 20. Rxf6 {[%clk 0:03:33.6]} 20... Bxf6 {[%clk 0:04:19.5]} 21.
g5 {[%clk 0:03:30.6]} 21... Bxb2 {[%clk 0:04:16.2]} 22. Rb1 {[%clk 0:03:27]}
22... Be5+ {[%clk 0:04:15]} 23. Kh1 {[%clk 0:03:16.1]} 23... Bd4 {[%clk
0:04:09.7]} 24. Qf3 {[%clk 0:03:10.5]} 24... Rb8 {[%clk 0:03:58.7]} 25. Rb6
{[%clk 0:02:58.9]} 25... Bxb6 {[%clk 0:03:52]} 26. Qf6 {[%clk 0:02:57.6]} 26...
Bd4 {[%clk 0:03:39.3]} 27. Qxd4 {[%clk 0:02:55.8]} 27... f6 {[%clk 0:03:38.8]}
28. Qxf6 {[%clk 0:02:54.5]} 28... Qf8 {[%clk 0:03:35.1]} 1-0

[Event "Live Chess"]
[Site "Chess.com"]
[Date "2024.06.02"]
[Round "-"]
[White "wadsy27"]
[Black "elephantgerrald"]
[Result "1-0"]
[WhiteElo "2588"]
[BlackElo "852"]
[TimeControl "300"]
[EndTime "1:05:07 PDT"]
[Termination "wadsy27 won by checkmate"]

1. d4 {[%clk 0:04:58.7]} 1... d5 {[%clk 0:04:58.9]} 2. c4 {[%clk 0:04:58.3]}
2... dxc4 {[%clk 0:04:56.1]} 3. e3 {[%clk 0:04:57.5]} 3... c5 {[%clk 0:04:34]}
4. Nf3 {[%clk 0:04:52.4]} 4... cxd4 {[%clk 0:04:32.3]} 5. Bxc4 {[%clk
0:04:51.5]} 5... Nf6 {[%clk 0:04:29]} 6. O-O {[%clk 0:04:44.7]} 6... e6 {[%clk
0:04:26.4]} 7. exd4 {[%clk 0:04:42.8]} 7... Bd6 {[%clk 0:04:24.3]} 8. Nc3 {[%clk
0:04:42.2]} 8... O-O {[%clk 0:04:22.8]} 9. Bg5 {[%clk 0:04:39.8]} 9... Nc6
{[%clk 0:04:18.8]} 10. Rc1 {[%clk 0:04:38.3]} 10... Bd7 {[%clk 0:04:17.1]} 11.
d5 {[%clk 0:04:35.3]} 11... exd5 {[%clk 0:04:14.8]} 12. Nxd5 {[%clk 0:04:34.3]}
12... Be7 {[%clk 0:04:08.6]} 13. Nxe7+ {[%clk 0:04:31.2]} 13... Qxe7 {[%clk
0:04:06.5]} 14. Re1 {[%clk 0:04:26.2]} 14... Qb4 {[%clk 0:03:58.5]} 15. Bxf6
{[%clk 0:04:24.2]} 15... gxf6 {[%clk 0:03:54.6]} 16. Qxd7 {[%clk 0:04:23.3]}
16... Na5 {[%clk 0:03:46.4]} 17. Re4 {[%clk 0:04:13.8]} 17... Nxc4 {[%clk
0:03:40]} 18. Rexc4 {[%clk 0:04:09.3]} 18... Qxb2 {[%clk 0:03:38.9]} 19. h3
{[%clk 0:03:58.7]} 19... Rfd8 {[%clk 0:03:34.2]} 20. Qg4+ {[%clk 0:03:57.8]}
20... Kh8 {[%clk 0:03:32.3]} 21. Nh4 {[%clk 0:03:57.3]} 21... Qe5 {[%clk
0:03:22.9]} 22. Nf5 {[%clk 0:03:54.5]} 22... Rg8 {[%clk 0:03:13]} 23. Rc8 {[%clk
0:03:53.6]} 23... Raxc8 {[%clk 0:02:59]} 24. Rxc8 {[%clk 0:03:52.7]} 24... Qe1+
{[%clk 0:02:56.6]} 25. Kh2 {[%clk 0:03:52]} 25... Qe5+ {[%clk 0:02:49.9]} 26. g3
{[%clk 0:03:51.3]} 26... Qe1 {[%clk 0:02:41]} 27. Qg7# {[%clk 0:03:48.1]} 1-0

[Event "Live Chess"]
[Site "Chess.com"]
[Date "2024.06.02"]
[Round "-"]
[White "Ksenia_2013"]
[Black "DavrosLight"]
[Result "0-1"]
[WhiteElo "944"]
[BlackElo "776"]
[TimeControl "300"]
[EndTime "1:05:29 PDT"]
[Termination "DavrosLight won by checkmate"]

1. e4 {[%clk 0:04:57.7]} 1... e5 {[%clk 0:04:55.3]} 2. Nf3 {[%clk 0:04:55.9]}
2... Nc6 {[%clk 0:04:53.2]} 3. Bc4 {[%clk 0:04:54.3]} 3... Nf6 {[%clk
0:04:40.5]} 4. Ng5 {[%clk 0:04:52.1]} 4... Nxe4 {[%clk 0:04:38.3]} 5. Nxf7
{[%clk 0:04:47.3]} 5... Qh4 {[%clk 0:04:36.2]} 6. O-O {[%clk 0:04:41.5]} 6...
Nxf2 {[%clk 0:04:22.8]} 7. Nxh8 {[%clk 0:04:34.6]} 7... Nxd1 {[%clk 0:04:18.7]}
8. Rxd1 {[%clk 0:04:27.9]} 8... Bc5+ {[%clk 0:04:05.1]} 9. Kh1 {[%clk
0:04:21.5]} 9... Qxc4 {[%clk 0:03:55.3]} 10. Nc3 {[%clk 0:04:16.4]} 10... Kf8
{[%clk 0:03:27.7]} 11. Rf1+ {[%clk 0:04:13.3]} 11... Qxf1# {[%clk 0:03:19.8]}
0-1